bitfinex/quotes_BTCUSD_20210101
["timestamp","ask_amount","ask_price","bid_price","bid_amount"]
[1609487969594,0.364103,29087.0,29086.0,0.64754519]
[1609487970191,1.037103,29087.0,29086.0,0.64754519]
[1609487970391,1.232103,29087.0,29086.0,0.64754519]
[1609487972020,0.868,29087.0,29086.0,0.64754519]
[1609487972220,0.673,29087.0,29086.0,0.64754519]
[1609487973122,1.037103,29087.0,29086.0,0.64754519]
[1609487974520,0.673,29087.0,29086.0,0.64754519]
[1609487974759,1.138,29087.0,29086.0,0.64754519]
[1609487975120,1.038,29087.0,29086.0,0.64754519]
[1609487975522,0.673,29087.0,29086.0,0.64754519]
[1609487976124,0.668,29087.0,29086.0,0.64754519]
[1609487984259,1.093,29087.0,29086.0,0.64754519]
[1609487988163,1.093,29087.0,29086.0,0.82400832]
[1609487988361,0.16042906,29087.0,29086.0,0.82400832]
[1609487988565,1.0,29088.0,29086.0,0.82400832]
[1609487988765,0.17555239,29088.0,29086.0,0.82400832]
[1609487988962,1.67288448,29089.0,29086.0,0.82400832]
[1609487989464,0.67288448,29089.0,29086.0,0.82400832]
[1609487989880,0.00160001,29090.0,29086.0,0.82400832]
[1609487990085,0.099911,29090.0,29086.0,0.82400832]
[1609487990583,0.8178632,29092.0,29091.0,0.34141591]
[1609487990886,1.3169662,29092.0,29091.0,0.34141591]
[1609487991081,0.60400195,29092.0,29091.0,0.34141591]
[1609487991584,0.42972587,29087.0,29085.0,0.1]
[1609487991847,1.7,29091.0,29086.0,1.85199456]
[1609487991848,0.3,29091.0,29086.0,1.85199456]
[1609487992047,0.3,29091.0,29087.0,0.375]
[1609487992347,0.43843679,29098.0,29088.0,0.1]
[1609487992546,0.10539903,29094.0,29088.0,0.1]
[1609487992848,0.61612115,29097.0,29089.0,0.55]
[1609487993049,0.61612115,29097.0,29092.0,0.33405173]
[1609487993050,0.364103,29096.0,29092.0,0.33405173]
[1609487993246,0.544103,29096.0,29094.0,0.5148]
[1609487993447,1.564101,29095.0,29094.0,0.5148]
[1609487994044,1.26501145,29095.0,29094.0,0.5148]
[1609487994246,2.61501145,29095.0,29094.0,0.51366166]
[1609487994451,2.61501145,29095.0,29094.0,0.51261445]
[1609487994645,2.61501145,29095.0,29094.0,0.51150023]
[1609487994845,2.78292663,29095.0,29094.0,0.50937231]
[1609487995147,1.26501145,29095.0,29094.0,0.50937231]
[1609487996771,0.99501145,29095.0,29094.0,0.50937231]
[1609487996973,0.4226948,29095.0,29094.0,0.50937231]
[1609487997372,1.2226948,29095.0,29094.0,0.50937231]
[1609487997571,0.92511784,29095.0,29094.0,0.50937231]
[1609487997973,0.29260271,29098.0,29094.0,0.50937231]
[1609487998278,0.364104,29095.0,29094.0,0.50937231]
[1609487998477,0.287804,29095.0,29094.0,0.50937231]
[1609487998677,0.364104,29098.0,29094.0,0.68937231]
[1609487999177,0.89366681,29099.0,29095.0,0.19]
[1609487999479,0.698,29099.0,29095.0,0.19]
[1609487999878,0.35767286,29099.0,29095.0,0.19]
[1609488000080,0.35767286,29099.0,29096.0,0.19]
[1609488000279,0.02373949,29099.0,29093.0,0.91493402]
[1609488000481,0.0816,29104.0,29093.0,0.91493402]
[1609488000678,0.0816,29104.0,29093.0,0.58107]
[1609488000883,2.36923886,29100.0,29093.0,0.58107]
[1609488001101,2.36923886,29100.0,29093.0,0.91493655]
[1609488001299,0.00045795,29099.0,29093.0,0.91493655]
[1609488001501,0.00045795,29099.0,29094.0,0.135]
[1609488002007,2.20160001,29100.0,29095.0,0.36409]
[1609488002301,2.20160001,29100.0,29096.0,0.1]
[1609488002498,2.14828006,29100.0,29096.0,0.1]
[1609488003997,2.14828006,29100.0,29096.0,0.7863]
[1609488004198,2.14828006,29100.0,29096.0,0.6863]
[1609488005298,0.00044519,29099.0,29096.0,0.6863]
[1609488006406,0.00044519,29099.0,29097.0,0.205]
[1609488006604,2.14872525,29100.0,29097.0,0.205]
[1609488012153,0.00044519,29099.0,29096.0,0.6863]
[1609488014077,0.00044519,29099.0,29096.0,0.68110792]
[1609488014377,2.14775897,29100.0,29096.0,0.6800783]
[1609488017379,0.00043294,29099.0,29096.0,0.6800783]
[1609488018193,0.84715482,29098.0,29096.0,0.6800783]
[1609488019596,0.84715482,29098.0,29096.0,0.7800783]
[1609488020498,1.22215482,29098.0,29096.0,0.77484047]
[1609488022459,1.22215482,29098.0,29096.0,0.78273305]
[1609488022664,0.84715482,29098.0,29096.0,0.77743542]
[1609488026297,0.84715482,29098.0,29096.0,0.67743542]
[1609488027301,0.84715482,29098.0,29096.0,0.67630321]
[1609488027520,0.84758776,29098.0,29096.0,0.67630321]
[1609488028125,1.63,29097.0,29096.0,0.67630321]
[1609488028522,1.63,29097.0,29096.0,0.68273322]
[1609488028721,1.45,29097.0,29096.0,0.68273322]
[1609488030630,0.84715482,29098.0,29096.0,0.68273322]
[1609488030827,0.84185789,29098.0,29096.0,0.68273322]
[1609488032527,0.81685789,29098.0,29096.0,0.68273322]
[1609488035453,0.00043294,29099.0,29096.0,0.68273322]
[1609488035454,0.32021531,29100.0,29099.0,4.4]
[1609488035663,0.32021531,29100.0,29099.0,5.57409]
[1609488035664,0.21056013,29100.0,29099.0,5.57409]
[1609488035862,0.00220001,29102.0,29100.0,1.9]
[1609488036059,0.0008,29103.0,29101.0,5.74143827]
[1609488036260,0.00438443,29111.0,29101.0,5.74143827]
[1609488036454,0.0022,29113.0,29101.0,5.74143827]
[1609488036659,2.55387911,29136.0,29102.0,0.9]
[1609488036919,2.55387911,29136.0,29117.0,0.34166118]
[1609488036920,0.0008,29118.0,29117.0,0.34166118]
[1609488037214,0.0008,29122.0,29117.0,2.11760118]
[1609488037402,0.0008,29122.0,29118.0,1.0]
[1609488037608,0.0008,29122.0,29119.0,0.275]
[1609488037810,0.00173906,29123.0,29120.0,1.0]
[1609488038005,0.85173906,29123.0,29122.0,0.2569841]
[1609488038207,0.0008,29124.0,29122.0,1.2569841]
[1609488038413,0.0008,29124.0,29123.0,1.0]
[1609488038604,0.0008,29124.0,29123.0,1.365]
[1609488039038,2.1353,29125.0,29123.0,1.365]
[1609488039039,1.835703,29125.0,29123.0,1.365]
[1609488039231,1.83612464,29125.0,29123.0,1.365]
[1609488039432,1.63821059,29125.0,29124.0,1.0]
[1609488039634,1.63821059,29125.0,29123.0,1.365]
[1609488039841,1.63821059,29125.0,29124.0,1.0]
[1609488039842,1.63778895,29125.0,29124.0,1.0]
[1609488040135,1.584469,29125.0,29124.0,1.265]
[1609488040436,1.36239884,29125.0,29124.0,1.265]
[1609488040833,0.80798293,29125.0,29124.0,1.265]
[1609488041436,0.00082164,29126.0,29124.0,1.365]
[1609488041638,0.0004,29126.0,29125.0,1.27]
[1609488041834,0.0004,29126.0,29125.0,1.63409]
[1609488042035,0.0004,29132.0,29125.0,1.63409]
[1609488042340,0.0008,29133.0,29125.0,1.63409]
[1609488042341,0.0008,29133.0,29132.0,0.28055504]
[1609488042559,0.4008,29133.0,29132.0,0.28055504]
[1609488042760,0.0008,29133.0,29132.0,0.28055504]
[1609488043060,3.3,29133.0,29132.0,0.28055504]
[1609488043858,3.48,29133.0,29132.0,0.28055504]
[1609488044259,3.3,29133.0,29132.0,0.28055504]
[1609488045262,0.01593278,29136.0,29132.0,0.28055504]
[1609488045467,0.00041049,29134.0,29133.0,0.99]
[1609488045861,0.01634327,29136.0,29133.0,0.99]
[1609488046461,0.01634327,29136.0,29132.0,0.28055504]
[1609488046861,0.00634327,29136.0,29132.0,0.28055504]
[1609488047861,0.00134327,29136.0,29132.0,0.28055504]
[1609488048286,0.00134327,29136.0,29132.0,0.26555504]
[1609488048791,0.0006,29141.0,29132.0,0.26555504]
[1609488048989,0.205,29141.0,29132.0,0.26555504]
[1609488049286,0.22846812,29141.0,29132.0,0.26555504]
[1609488049885,0.22846812,29141.0,29127.0,0.9]
[1609488050088,0.22846812,29141.0,29134.0,0.5142]
[1609488050288,0.69452325,29142.0,29134.0,0.5142]
[1609488050989,0.4797,29142.0,29134.0,0.5142]
[1609488052232,0.48009973,29142.0,29134.0,0.5142]
[1609488052738,0.6908,29143.0,29134.0,0.5142]
[1609488052935,0.6908,29143.0,29134.0,1.5042]
[1609488053137,0.6908,29143.0,29134.0,0.5142]
[1609488054667,0.6908,29143.0,29134.0,1.51208173]
[1609488055069,0.6858,29143.0,29134.0,1.51208173]
[1609488056371,0.6858,29143.0,29136.0,0.6855]
[1609488056372,0.6861876,29143.0,29136.0,0.6855]
[1609488056770,0.6811876,29143.0,29136.0,1.0055]
[1609488056968,0.6761876,29143.0,29136.0,0.6855]
[1609488057370,0.6761876,29143.0,29137.0,0.1]
[1609488057598,0.6731876,29143.0,29137.0,0.1]
[1609488057899,0.6731876,29143.0,29137.0,1.09]
[1609488058101,0.6729876,29143.0,29138.0,1.255]
[1609488058301,0.6667876,29143.0,29139.0,0.99]
[1609488058701,0.6667876,29143.0,29138.0,0.265]
[1609488059002,0.6667876,29143.0,29137.0,0.1]
[1609488060403,0.35870383,29142.0,29138.0,0.99]
[1609488060601,0.35909143,29142.0,29138.0,0.99]
[1609488060900,0.35909143,29142.0,29138.0,0.99788124]
[1609488061102,0.35909143,29142.0,29139.0,0.99]
[1609488061303,0.35909143,29142.0,29138.0,0.00788124]
[1609488061803,0.35909143,29142.0,29139.0,0.99]
[1609488062005,0.35909143,29142.0,29140.0,0.145]
[1609488062207,0.35870383,29142.0,29140.0,0.50909]
[1609488062408,0.35870383,29142.0,29141.0,0.1]
[1609488062709,0.35909147,29142.0,29141.0,1.09]
[1609488062907,0.35909147,29142.0,29141.0,1.25]
[1609488063123,0.35870383,29142.0,29141.0,1.25]
[1609488063920,0.35690383,29142.0,29141.0,2.71409]
[1609488064124,0.35670383,29142.0,29141.0,1.61409]
[1609488064323,0.35590383,29142.0,29141.0,1.61409]
[1609488064722,0.35550383,29142.0,29141.0,1.61409]
[1609488065023,0.35510383,29142.0,29141.0,1.61409]
[1609488065428,0.35470383,29142.0,29141.0,2.26409]
[1609488065728,0.35470383,29142.0,29141.0,1.61409]
[1609488066526,0.35470383,29142.0,29141.0,2.57197076]
[1609488066967,0.35470383,29142.0,29141.0,0.63197076]
[1609488067165,0.35470383,29142.0,29141.0,0.26788076]
[1609488067366,0.35470383,29142.0,29141.0,0.10788076]
[1609488067567,0.38510383,29142.0,29141.0,2.11197076]
[1609488068065,0.38510383,29142.0,29141.0,0.47197076]
[1609488068266,0.38510383,29142.0,29141.0,1.46197076]
[1609488068468,0.38510383,29142.0,29141.0,1.69697076]
[1609488068667,0.38510383,29142.0,29141.0,2.39697076]
[1609488068895,0.38450383,29142.0,29141.0,1.40697076]
[1609488069394,0.38450383,29142.0,29141.0,2.39697076]
[1609488069800,0.38090383,29142.0,29141.0,3.94697076]
[1609488069995,0.38010383,29142.0,29141.0,2.39697076]
[1609488070193,0.37970383,29142.0,29141.0,2.39697076]
[1609488070397,0.37950383,29142.0,29141.0,1.40697076]
[1609488071396,0.37930383,29142.0,29141.0,3.04697076]
[1609488071598,0.37930383,29142.0,29141.0,1.40697076]
[1609488071897,0.37830383,29142.0,29141.0,2.39697076]
[1609488073131,0.37830383,29142.0,29141.0,1.40697076]
[1609488073434,0.37830383,29142.0,29141.0,1.35197076]
[1609488073635,0.37770383,29142.0,29141.0,1.20697076]
[1609488074037,0.36270383,29142.0,29141.0,2.19697076]
[1609488074639,0.36270383,29142.0,29141.0,0.70697076]
[1609488074937,0.36270383,29142.0,29141.0,1.46197076]
[1609488075540,0.36270383,29142.0,29141.0,1.81197076]
[1609488075937,0.36270383,29142.0,29141.0,0.47197076]
[1609488076341,0.35770383,29142.0,29141.0,0.47197076]
[1609488076537,0.35770383,29142.0,29141.0,0.82197076]
[1609488076941,0.35710383,29142.0,29141.0,1.81197076]
[1609488077141,0.35710383,29142.0,29141.0,2.08197076]
[1609488077539,0.35710383,29142.0,29141.0,1.73197076]
[1609488077744,0.35210383,29142.0,29141.0,1.73197076]
[1609488077942,0.35210383,29142.0,29141.0,1.63197076]
[1609488078182,0.35210383,29142.0,29141.0,0.27288076]
[1609488078369,0.35210383,29142.0,29141.0,0.00288076]
[1609488079271,0.34210383,29142.0,29141.0,0.00288076]
[1609488079673,0.34210383,29142.0,29141.0,0.36697076]
[1609488080472,0.94210383,29142.0,29141.0,0.36697076]
[1609488080777,0.94210383,29142.0,29141.0,0.00288076]
[1609488080975,0.34210383,29142.0,29141.0,0.00288076]
[1609488083252,0.34210383,29142.0,29141.0,0.10788061]
[1609488083553,0.34210383,29142.0,29141.0,0.00788061]
[1609488084457,2.19210383,29142.0,29141.0,0.10788061]
[1609488084653,2.19210383,29142.0,29141.0,0.00788061]
[1609488084857,0.73290383,29142.0,29141.0,0.00788061]
[1609488085056,0.73290383,29142.0,29141.0,0.69308061]
[1609488085254,0.34210383,29142.0,29141.0,0.69308061]
[1609488085455,1.44210383,29142.0,29141.0,0.69308061]
[1609488085692,1.83290383,29142.0,29141.0,0.69308061]
[1609488085857,1.44210383,29142.0,29141.0,0.69308061]
[1609488086461,2.79210383,29142.0,29141.0,0.69308061]
[1609488086658,3.26710383,29142.0,29141.0,0.69308061]
[1609488086859,2.30790383,29142.0,29141.0,0.69308061]
[1609488087062,1.91710383,29142.0,29141.0,0.69308061]
[1609488087259,1.44210383,29142.0,29141.0,0.69308061]
[1609488087463,2.89210383,29142.0,29141.0,0.69308061]
[1609488087872,1.83290383,29142.0,29141.0,0.69308061]
[1609488088075,1.44210383,29142.0,29141.0,0.69308061]
[1609488088275,1.83290383,29142.0,29141.0,0.69308061]
[1609488088677,2.17790383,29142.0,29141.0,0.69308061]
[1609488088881,2.17790383,29142.0,29141.0,0.00788061]
[1609488089080,2.21137195,29142.0,29141.0,0.00788061]
[1609488089779,2.93487195,29142.0,29141.0,0.00788061]
[1609488091077,2.90140383,29142.0,29141.0,0.00788061]
[1609488091478,2.17790383,29142.0,29141.0,0.00788061]
[1609488092777,0.68710383,29142.0,29141.0,0.00788061]
[1609488092976,0.34210383,29142.0,29141.0,0.00788061]
[1609488094522,0.73290383,29142.0,29141.0,0.00788061]
[1609488096125,0.34210383,29142.0,29141.0,0.00788061]
[1609488097165,0.51210383,29142.0,29141.0,0.00788061]
[1609488097768,0.34210383,29142.0,29141.0,0.00788061]
[1609488098071,0.73290383,29142.0,29141.0,0.00788061]
[1609488098267,0.33970383,29142.0,29141.0,4.19788061]
[1609488098475,0.33690383,29142.0,29141.0,3.44788061]
[1609488098664,0.33690383,29142.0,29141.0,1.94788061]
[1609488099570,0.33690383,29142.0,29141.0,1.39788061]
[1609488100072,0.33690383,29142.0,29141.0,2.08318061]
[1609488100770,0.33690383,29142.0,29141.0,1.98318061]
[1609488100970,0.33630383,29142.0,29141.0,2.25818061]
[1609488101274,0.33630383,29142.0,29141.0,3.12227061]
[1609488102168,0.33490383,29142.0,29141.0,3.12227061]
[1609488102369,0.33410383,29142.0,29141.0,3.12227061]
[1609488102585,0.33350383,29142.0,29141.0,3.12227061]
[1609488102793,0.33010383,29142.0,29141.0,3.12227061]
[1609488102990,0.32790383,29142.0,29141.0,5.27227061]
[1609488103190,0.32790383,29142.0,29141.0,5.87227061]
[1609488103191,0.32550383,29142.0,29141.0,5.87227061]
[1609488103491,0.31970383,29142.0,29141.0,4.52227061]
[1609488103687,0.31970383,29142.0,29141.0,5.67227061]
[1609488103688,0.31630383,29142.0,29141.0,5.67227061]
[1609488103988,0.31090383,29142.0,29141.0,4.52227061]
[1609488104186,0.31010383,29142.0,29141.0,3.12227061]
[1609488105087,0.30630383,29142.0,29141.0,4.42350061]
[1609488105291,0.30290383,29142.0,29141.0,4.42350061]
[1609488105490,0.30210383,29142.0,29141.0,6.17350061]
[1609488105694,0.29890383,29142.0,29141.0,5.37350061]
[1609488105994,0.0004,29145.0,29143.0,2.09]
[1609488106202,0.0008,29152.0,29147.0,0.99]
[1609488106397,0.98880418,29155.0,29149.0,0.45]
[1609488106594,0.88560418,29155.0,29152.0,1.35409]
[1609488106798,0.88280418,29155.0,29154.0,3.76409]
[1609488106994,0.88000418,29155.0,29154.0,5.48909]
[1609488107193,0.87640418,29155.0,29154.0,5.48909]
[1609488107391,0.87440418,29155.0,29154.0,5.48909]
[1609488107594,0.81310418,29155.0,29154.0,5.79003647]
[1609488107795,0.80510418,29155.0,29154.0,5.79003647]
[1609488107992,0.79010418,29155.0,29154.0,5.79003647]
[1609488108206,0.78420418,29155.0,29154.0,5.79003647]
[1609488108409,0.78200418,29155.0,29154.0,5.79003647]
[1609488108606,0.77790418,29155.0,29154.0,5.79003647]
[1609488108810,0.77450418,29155.0,29154.0,5.79003647]
[1609488109110,0.08640418,29155.0,29154.0,5.79003647]
[1609488109314,0.01074309,29156.0,29155.0,3.82889582]
[1609488109510,0.01074309,29156.0,29155.0,5.75409]
[1609488109708,0.01038,29156.0,29155.0,5.75409]
[1609488109914,0.0004,29159.0,29157.0,3.4]
[1609488110132,0.0008,29162.0,29157.0,3.4]
[1609488110133,0.0004,29162.0,29160.0,0.36409]
[1609488110321,0.10150079,29163.0,29162.0,3.76409]
[1609488110514,0.10150079,29163.0,29162.0,5.63909]
[1609488110714,0.1,29163.0,29162.0,5.63909]
[1609488110918,0.6512,29174.0,29163.0,0.35]
[1609488111123,0.0006,29175.0,29167.0,0.54358]
[1609488111516,0.0006,29175.0,29169.0,0.36409]
[1609488111716,0.0006,29175.0,29170.0,0.08]
[1609488112046,1.98619928,29177.0,29171.0,3.76409]
[1609488112192,1.98619928,29177.0,29171.0,0.36409]
[1609488112793,1.98619928,29177.0,29172.0,0.08]
[1609488113097,1.98619928,29177.0,29173.0,0.53383]
[1609488113393,0.00034612,29176.0,29175.0,0.36409]
[1609488113793,1.9865454,29177.0,29175.0,0.36409]
[1609488114230,1.9865454,29177.0,29176.0,0.08]
[1609488114431,1.98119928,29177.0,29176.0,0.08]
[1609488114636,1.98119928,29177.0,29176.0,0.215]
[1609488115634,2.6554674,29177.0,29154.0,0.3422]
[1609488115838,2.6554674,29177.0,29155.0,0.39604206]
[1609488115839,0.2,29176.0,29155.0,0.39604206]
[1609488116044,0.2,29176.0,29153.0,0.26766352]
[1609488116045,1.94121137,29175.0,29157.0,0.8557]
[1609488116237,0.56334324,29174.0,29154.0,0.39658074]
[1609488116440,1.22814726,29173.0,29149.0,0.39336736]
[1609488116643,1.47147852,29172.0,29148.0,0.67275877]
[1609488116839,1.32685895,29171.0,29149.0,0.56334324]
[1609488117040,1.29642582,29170.0,29149.0,0.56334324]
[1609488117341,0.9045,29166.0,29149.0,0.66651965]
[1609488117539,1.19228071,29165.0,29149.0,0.56334324]
[1609488117761,1.47709796,29164.0,29148.0,0.56334324]
[1609488118065,1.22616519,29163.0,29147.0,0.51158143]
[1609488118267,1.26802238,29162.0,29147.0,1.16]
[1609488118462,0.73814726,29161.0,29147.0,1.16]
[1609488118663,0.42426812,29161.0,29147.0,0.17]
[1609488118864,0.42426812,29160.0,29147.0,0.17]
[1609488119264,0.42461424,29161.0,29156.0,0.00049678]
[1609488119465,0.47114612,29160.0,29156.0,0.00049678]
[1609488119663,0.03346812,29159.0,29156.0,0.00049678]
[1609488119864,0.08,29158.0,29156.0,0.00049678]
[1609488120063,0.08,29158.0,29156.0,6.78e-06]
[1609488120474,0.42426812,29157.0,29156.0,6.78e-06]
[1609488120669,0.89686555,29157.0,29156.0,6.78e-06]
[1609488120869,0.89686555,29157.0,29141.0,0.00123]
[1609488120870,1.21186555,29157.0,29141.0,0.00123]
[1609488121071,1.32781232,29156.0,29141.0,0.00123]
[1609488121267,1.4261155,29155.0,29141.0,0.00123]
[1609488121572,0.70813528,29153.0,29141.0,0.00123]
[1609488121875,0.9048,29150.0,29141.0,0.00123]
[1609488122073,0.70467914,29149.0,29141.0,0.00123]
[1609488122267,0.185,29148.0,29141.0,0.00123]
[1609488122468,0.03346812,29147.0,29141.0,0.00123]
[1609488122768,0.34769338,29147.0,29141.0,0.00123]
[1609488123166,0.73849338,29147.0,29141.0,0.00123]
[1609488123409,0.39422526,29146.0,29141.0,0.00123]
[1609488123605,0.08034612,29146.0,29141.0,0.00123]
[1609488123811,0.39422526,29146.0,29141.0,0.00123]
[1609488124107,0.47114612,29146.0,29141.0,0.00123]
[1609488124307,0.4708,29146.0,29141.0,0.00123]
[1609488124508,0.3908,29145.0,29141.0,0.00123]
[1609488124710,0.08,29146.0,29141.0,0.00123]
[1609488124711,0.4708,29146.0,29141.0,0.00123]
[1609488124906,0.47114612,29145.0,29141.0,0.00123]
[1609488125107,0.08034612,29145.0,29141.0,0.00123]
[1609488125813,0.03346812,29144.0,29141.0,0.00123]
[1609488126012,0.42461424,29144.0,29141.0,0.00123]
[1609488126209,0.03381424,29144.0,29141.0,0.00123]
[1609488126411,0.03346812,29143.0,29141.0,0.00123]
[1609488126709,0.00034612,29143.0,29141.0,0.00123]
[1609488127171,0.03381424,29144.0,29141.0,0.00123]
[1609488127572,0.00034612,29144.0,29141.0,0.00123]
[1609488127775,0.11381424,29145.0,29141.0,0.00123]
[1609488128071,0.20491,29143.0,29141.0,0.00123]
[1609488128473,0.20525612,29143.0,29141.0,0.00123]
[1609488129076,0.08,29142.0,29141.0,0.00123]
[1609488129277,0.00034612,29143.0,29141.0,0.00123]
[1609488129580,0.02846812,29148.0,29141.0,0.00123]
[1609488130277,0.00206442,29138.0,29135.0,0.00047518]
[1609488130876,0.00206442,29138.0,29136.0,0.36409]
[1609488131178,0.00206442,29138.0,29135.0,0.00047518]
[1609488131375,0.00206442,29138.0,29136.0,0.36409]
[1609488131878,0.00206442,29138.0,29132.0,0.15]
[1609488132080,0.00206442,29138.0,29134.0,0.36409]
[1609488132277,0.00206442,29138.0,29135.0,0.2078823]
[1609488132475,0.00206442,29138.0,29135.0,0.0078823]
[1609488138718,0.00206442,29138.0,29135.0,0.0028823]
[1609488144806,0.00206442,29138.0,29135.0,0.00788215]
[1609488145199,0.00240151,29138.0,29135.0,0.00788215]
[1609488145801,0.00206442,29138.0,29135.0,0.00788215]
[1609488146708,0.62610151,29141.0,29135.0,0.00788215]
[1609488147005,0.14,29140.0,29135.0,0.00788215]
[1609488149828,0.14,29140.0,29136.0,0.12248993]
[1609488150326,0.02846812,29139.0,29136.0,0.12248993]
[1609488150730,0.02879713,29139.0,29135.0,0.13041605]
[1609488151227,0.18846812,29138.0,29135.0,0.13041605]
[1609488151527,0.18879713,29138.0,29136.0,0.12262558]
[1609488151830,0.18879713,29138.0,29135.0,0.13050537]
[1609488152029,0.16032901,29138.0,29135.0,0.13050537]
[1609488152427,0.47420815,29138.0,29136.0,0.12261906]
[1609488152628,3.4,29137.0,29136.0,0.12261906]
[1609488152823,4.035,29137.0,29136.0,0.12261906]
[1609488155953,4.035,29137.0,29135.0,0.00788215]
[1609488155954,4.03532901,29137.0,29135.0,0.13053402]
[1609488156151,3.78887914,29136.0,29135.0,0.13053402]
[1609488156452,3.475,29136.0,29135.0,0.13053402]
[1609488156954,3.375,29136.0,29135.0,0.13053402]
[1609488159436,0.525,29136.0,29135.0,0.13053402]
[1609488159739,1.32,29136.0,29135.0,0.13053402]
[1609488160641,3.57,29136.0,29135.0,0.13053402]
[1609488161446,3.57,29136.0,29135.0,0.00788215]
[1609488161741,4.025,29136.0,29135.0,0.00788215]
[1609488161939,4.05346812,29136.0,29135.0,0.00788215]
[1609488162139,4.025,29136.0,29135.0,0.00788215]
[1609488162543,4.05346812,29136.0,29135.0,0.00788215]
[1609488162969,4.025,29136.0,29135.0,0.00788215]
[1609488163367,4.05346812,29136.0,29135.0,0.00788215]
[1609488163569,4.025,29136.0,29135.0,0.00788215]
[1609488164276,4.025,29136.0,29132.0,0.12285926]
[1609488164473,0.91420815,29135.0,29132.0,9.26e-06]
[1609488164673,0.30887914,29134.0,29132.0,9.26e-06]
[1609488164882,0.02846812,29133.0,29129.0,0.0002]
[1609488165075,0.02879713,29133.0,29129.0,0.0002]
[1609488165674,0.23640713,29132.0,29129.0,0.0002]
[1609488165872,0.20793901,29132.0,29129.0,0.0002]
[1609488166274,0.02846812,29131.0,29129.0,0.0002]
[1609488166875,0.02879713,29131.0,29129.0,0.0002]
[1609488168789,3.42846812,29130.0,29129.0,0.0002]
[1609488168991,3.95,29130.0,29129.0,0.0002]
[1609488171095,3.97846812,29130.0,29129.0,0.0002]
[1609488171691,3.95,29130.0,29129.0,0.0002]
[1609488173638,4.3142893,29130.0,29129.0,0.0002]
[1609488173835,4.03562,29130.0,29129.0,0.0002]
[1609488174274,4.3999093,29130.0,29129.0,0.0002]
[1609488176178,4.03562,29130.0,29129.0,0.0002]
[1609488176384,3.95,29130.0,29129.0,0.0002]
[1609488179202,4.4643,29130.0,29129.0,0.0002]
[1609488179704,1.04384947,29130.0,29129.0,0.0002]
[1609488179909,0.6744,29131.0,29129.0,0.0002]
[1609488181109,0.6744,29131.0,29129.0,0.5144]
[1609488184037,0.6744,29131.0,29129.0,0.0002]
[1609488184237,0.6244,29131.0,29129.0,0.0002]
[1609488190012,0.35561368,29130.0,29129.0,0.0002]
[1609488192316,0.35561368,29130.0,29129.0,0.9902]
[1609488192524,0.35561368,29130.0,29129.0,1.1852]
[1609488193049,0.35561368,29130.0,29129.0,1.51291516]
[1609488193953,0.35561368,29130.0,29129.0,1.1852]
[1609488194852,0.35561368,29130.0,29129.0,1.5128873]
[1609488196457,0.35561368,29130.0,29129.0,2.1984873]
[1609488197606,0.35561368,29130.0,29129.0,2.5625773]
[1609488199005,0.35561368,29130.0,29129.0,1.5725773]
[1609488199510,0.35561368,29130.0,29129.0,1.24489]
[1609488199910,0.35561368,29130.0,29129.0,1.57247252]
[1609488200211,0.35561368,29130.0,29129.0,1.20838252]
[1609488200941,0.35561368,29130.0,29129.0,1.57247252]
[1609488202304,0.34061368,29130.0,29129.0,1.57247252]
[1609488202506,0.34061368,29130.0,29129.0,1.37747252]
[1609488203204,0.19061368,29130.0,29129.0,1.37747252]
[1609488204835,0.19061368,29130.0,29129.0,1.01338252]
[1609488207339,0.19061368,29130.0,29129.0,2.03989]
[1609488207544,0.19061368,29130.0,29129.0,2.34489]
[1609488207869,0.19061368,29130.0,29129.0,1.35489]
[1609488209670,0.19061368,29130.0,29129.0,2.34489]
[1609488210077,0.19061368,29130.0,29129.0,1.35489]
[1609488212279,0.19061368,29130.0,29129.0,1.04989]
[1609488215387,0.19061368,29130.0,29129.0,0.6858]
[1609488216592,0.19061368,29130.0,29129.0,1.04989]
[1609488225279,0.19061368,29130.0,29129.0,0.6858]
[1609488225477,0.19061368,29130.0,29129.0,1.04989]
[1609488226484,0.19061368,29130.0,29129.0,1.33489]
[1609488226682,0.19061368,29130.0,29129.0,1.23489]
[1609488227884,0.19061368,29130.0,29129.0,1.33489]
[1609488228283,0.19061368,29130.0,29129.0,1.23489]
[1609488231932,0.19061368,29130.0,29129.0,0.6858]
[1609488234181,0.19061368,29130.0,29129.0,1.04989]
[1609488235086,0.19061368,29130.0,29129.0,1.14989]
[1609488236608,0.19061368,29130.0,29129.0,1.04989]
[1609488236906,0.19061368,29130.0,29129.0,1.24989]
[1609488237604,0.19061368,29130.0,29129.0,1.04989]
[1609488240311,0.19061368,29130.0,29129.0,0.6858]
[1609488240714,0.29052468,29130.0,29129.0,0.6858]
[1609488240911,0.32561368,29130.0,29129.0,0.6858]
[1609488241511,0.32561368,29130.0,29129.0,1.04989]
[1609488241730,0.32561368,29130.0,29129.0,0.6858]
[1609488242531,0.32561368,29130.0,29129.0,0.6908]
[1609488242730,0.32561368,29130.0,29129.0,0.6858]
[1609488244038,0.32561368,29130.0,29129.0,0.0002]
[1609488244247,0.94523154,29130.0,29126.0,0.0002]
[1609488244438,1.12696512,29129.0,29124.0,0.0004]
[1609488244639,0.08,29128.0,29124.0,0.0002]
[1609488244837,0.02846812,29127.0,29123.0,0.3274555]
[1609488245039,0.29351,29126.0,29123.0,0.3274555]
[1609488245233,0.29351,29126.0,29123.0,5.5e-06]
[1609488245433,0.02846812,29125.0,29123.0,5.5e-06]
[1609488245638,0.08,29124.0,29121.0,0.0006]
[1609488246041,1.12846812,29123.0,29117.0,0.0006]
[1609488246244,4.6,29120.0,29114.0,0.0002]
[1609488246445,0.54374914,29119.0,29112.0,0.0008]
[1609488246641,1.14234726,29118.0,29112.0,0.0008]
[1609488246841,0.85708518,29117.0,29112.0,0.0008]
[1609488247146,0.10846812,29116.0,29112.0,0.0008]
[1609488247406,3.9908,29115.0,29111.0,4.5379]
[1609488247597,0.30887914,29112.0,29111.0,1.3379]
[1609488247792,4.49138124,29112.0,29111.0,0.4879]
[1609488247987,5.52801726,29112.0,29111.0,0.4879]
[1609488248190,5.87616936,29112.0,29111.0,0.4879]
[1609488248388,5.52801726,29112.0,29111.0,0.4879]
[1609488249590,4.39954914,29112.0,29111.0,0.4879]
[1609488249893,0.91954914,29112.0,29111.0,0.4879]
[1609488250291,1.24626915,29112.0,29111.0,0.4879]